[Event "*** Titled Tuesday 3|2 Blitz"]
[Site "Chess.com"]
[Date "2016.02.02"]
[Round "5"]
[White "tac49"]
[Black "kesarev"]
[Result "1-0"]
[WhiteElo "2462"]
[BlackElo "2174"]
[TimeControl "180+2"]
[EndTime "12:03:08 PST"]
[Termination "tac49 won by resignation"]

1. e4 {[%clk 0:02:54.9]} 1... c5 {[%clk 0:03:00.3]} 2. Nf3 {[%clk 0:02:54.8]}
2... e6 {[%clk 0:03:01.2]} 3. g3 {[%clk 0:02:54.4]} 3... d5 {[%clk 0:03:01.6]}
4. exd5 {[%clk 0:02:54.7]} 4... exd5 {[%clk 0:03:03.5]} 5. Bg2 {[%clk
0:02:55.6]} 5... Nf6 {[%clk 0:03:04.4]} 6. O-O {[%clk 0:02:55.6]} 6... Be7
{[%clk 0:03:05.2]} 7. d4 {[%clk 0:02:56.6]} 7... O-O {[%clk 0:03:05.5]} 8. Nc3
{[%clk 0:02:54]} 8... Nc6 {[%clk 0:03:03.7]} 9. dxc5 {[%clk 0:02:54.6]} 9...
Bxc5 {[%clk 0:03:03.2]} 10. Bg5 {[%clk 0:02:55.6]} 10... Be6 {[%clk 0:02:55.8]}
11. Bxf6 {[%clk 0:02:56]} 11... Qxf6 {[%clk 0:02:50.7]} 12. Nxd5 {[%clk
0:02:56.3]} 12... Qxb2 {[%clk 0:02:44.5]} 13. Rb1 {[%clk 0:02:56.9]} 13... Qxa2
{[%clk 0:02:38.8]} 14. Ng5 {[%clk 0:02:57.7]} 14... Bf5 {[%clk 0:01:32.4]} 15.
Rxb7 {[%clk 0:02:53.9]} 15... Rad8 {[%clk 0:00:52.9]} 16. Ne4 {[%clk 0:02:16.2]}
16... Bxe4 {[%clk 0:00:17.9]} 17. Bxe4 {[%clk 0:02:16.5]} 17... Nb4 {[%clk
0:00:14.7]} 18. Nf6+ {[%clk 0:02:11.1]} 18... Kh8 {[%clk 0:00:08.7]} 19. Qh5
{[%clk 0:02:01.7]} 19... h6 {[%clk 0:00:09.7]} 20. Qf5 {[%clk 0:01:59.8]} 20...
g6 {[%clk 0:00:10]} 21. Qxc5 {[%clk 0:02:00.7]} 21... Qe6 {[%clk 0:00:06.4]} 22.
Qxb4 {[%clk 0:01:43.4]} 22... Qxf6 {[%clk 0:00:07.5]} 23. Rxa7 {[%clk
0:01:34.9]} 23... Rfe8 {[%clk 0:00:05.5]} 24. Bd3 {[%clk 0:01:28.8]} 1-0

[Event "*** Titled Tuesday 3|2 Blitz"]
[Site "Chess.com"]
[Date "2016.02.02"]
[Round "5"]
[White "AndrewMcStone"]
[Black "Nutflush"]
[Result "0-1"]
[WhiteElo "2002"]
[BlackElo "1898"]
[TimeControl "180+2"]
[EndTime "12:03:26 PST"]
[Termination "Nutflush won by resignation"]

1. d4 {[%clk 0:03:01.9]} 1... Nf6 {[%clk 0:02:59.1]} 2. c4 {[%clk 0:03:01.7]}
2... e6 {[%clk 0:02:58.2]} 3. Nc3 {[%clk 0:03:02.5]} 3... Bb4 {[%clk 0:02:59.7]}
4. f3 {[%clk 0:03:03.4]} 4... d5 {[%clk 0:02:53.4]} 5. a3 {[%clk 0:03:03.3]}
5... Bxc3+ {[%clk 0:02:52]} 6. bxc3 {[%clk 0:03:02.5]} 6... O-O {[%clk
0:02:50.4]} 7. cxd5 {[%clk 0:03:03.2]} 7... Nxd5 {[%clk 0:02:49.6]} 8. e4 {[%clk
0:02:29.6]} 8... Ne7 {[%clk 0:02:45.1]} 9. Be3 {[%clk 0:02:25.3]} 9... c5 {[%clk
0:02:43.2]} 10. Bd3 {[%clk 0:02:16.4]} 10... Nd7 {[%clk 0:02:37.4]} 11. Ne2
{[%clk 0:02:15]} 11... Qc7 {[%clk 0:02:34.1]} 12. O-O {[%clk 0:02:13.8]} 12...
b6 {[%clk 0:02:34.5]} 13. Qe1 {[%clk 0:01:53.1]} 13... Bb7 {[%clk 0:02:33.9]}
14. Rc1 {[%clk 0:01:49.5]} 14... Rac8 {[%clk 0:02:30.9]} 15. Qh4 {[%clk
0:01:46.6]} 15... Ng6 {[%clk 0:02:30.1]} 16. Qh3 {[%clk 0:01:44]} 16... cxd4
{[%clk 0:02:21.2]} 17. cxd4 {[%clk 0:01:42.8]} 17... Qd6 {[%clk 0:02:21.7]} 18.
a4 {[%clk 0:01:20.7]} 18... Qa3 {[%clk 0:02:14.4]} 19. Rcd1 {[%clk 0:00:38.5]}
19... Qxa4 {[%clk 0:02:09]} 20. f4 {[%clk 0:00:39.6]} 20... Nf6 {[%clk
0:01:55.4]} 21. f5 {[%clk 0:00:35.3]} 21... exf5 {[%clk 0:01:51.2]} 22. exf5
{[%clk 0:00:23]} 22... Ne7 {[%clk 0:01:51.1]} 23. Bg5 {[%clk 0:00:21.1]} 23...
Ned5 {[%clk 0:01:47.8]} 24. Bb1 {[%clk 0:00:16.6]} 24... Rfe8 {[%clk 0:01:33.5]}
25. Nf4 {[%clk 0:00:16.5]} 25... Nxf4 {[%clk 0:01:26.7]} 26. Rxf4 {[%clk
0:00:16.1]} 26... Qxd1+ {[%clk 0:01:26.4]} 27. Rf1 {[%clk 0:00:15.5]} 27...
Qxd4+ {[%clk 0:01:25.4]} 28. Kh1 {[%clk 0:00:15.3]} 0-1

[Event "*** Titled Tuesday 3|2 Blitz"]
[Site "Chess.com"]
[Date "2016.02.02"]
[Round "5"]
[White "Zkid"]
[Black "E-Shaposhnikov"]
[Result "0-1"]
[WhiteElo "2454"]
[BlackElo "2523"]
[TimeControl "180+2"]
[EndTime "12:03:30 PST"]
[Termination "E-Shaposhnikov won by resignation"]

1. e4 {[%clk 0:03:00.8]} 1... c5 {[%clk 0:02:54.6]} 2. Nf3 {[%clk 0:03:01.1]}
2... e6 {[%clk 0:02:55.3]} 3. d4 {[%clk 0:03:02.3]} 3... cxd4 {[%clk 0:02:56]}
4. Nxd4 {[%clk 0:03:03.9]} 4... a6 {[%clk 0:02:55.2]} 5. Nc3 {[%clk 0:03:03]}
5... Qc7 {[%clk 0:02:55.5]} 6. Bd3 {[%clk 0:03:00.5]} 6... Nf6 {[%clk
0:02:54.7]} 7. O-O {[%clk 0:02:55.4]} 7... Nc6 {[%clk 0:02:52.1]} 8. Nxc6 {[%clk
0:02:54.7]} 8... dxc6 {[%clk 0:02:49.8]} 9. f4 {[%clk 0:02:51.9]} 9... e5 {[%clk
0:02:47.7]} 10. f5 {[%clk 0:02:47.6]} 10... b5 {[%clk 0:02:47]} 11. Kh1 {[%clk
0:02:46.2]} 11... Bb7 {[%clk 0:02:45.4]} 12. a4 {[%clk 0:02:42.5]} 12... Be7
{[%clk 0:02:36.8]} 13. Qf3 {[%clk 0:02:38]} 13... h5 {[%clk 0:02:36.3]} 14. Qg3
{[%clk 0:02:37.1]} 14... Kf8 {[%clk 0:02:30.3]} 15. Bg5 {[%clk 0:02:33.6]} 15...
Rd8 {[%clk 0:02:12]} 16. Qh4 {[%clk 0:02:29.4]} 16... Ng4 {[%clk 0:02:05.7]} 17.
f6 {[%clk 0:02:23.9]} 17... gxf6 {[%clk 0:01:59.2]} 18. Bd2 {[%clk 0:02:14.8]}
18... f5 {[%clk 0:01:59.7]} 19. Bg5 {[%clk 0:02:10.1]} 19... f4 {[%clk 0:01:57]}
20. g3 {[%clk 0:02:02.4]} 20... b4 {[%clk 0:01:41.2]} 21. Nb1 {[%clk 0:01:59.8]}
21... f6 {[%clk 0:01:34.5]} 22. gxf4 {[%clk 0:01:53.6]} 22... fxg5 {[%clk
0:01:35.4]} 23. fxg5+ {[%clk 0:01:54.7]} 23... Kg7 {[%clk 0:01:33.9]} 24. Nd2
{[%clk 0:01:55.1]} 24... c5 {[%clk 0:01:17]} 25. Nc4 {[%clk 0:01:44.8]} 25...
Rd4 {[%clk 0:01:14.4]} 26. Rae1 {[%clk 0:01:38.3]} 26... Qd7 {[%clk 0:01:12.9]}
27. Qg3 {[%clk 0:01:31]} 27... Qe6 {[%clk 0:01:03.6]} 28. b3 {[%clk 0:01:21.6]}
28... Bxg5 {[%clk 0:00:59.7]} 29. Rf5 {[%clk 0:01:13.1]} 29... Qxf5 {[%clk
0:00:59.4]} 30. Kg1 {[%clk 0:01:02.9]} 30... Qf4 {[%clk 0:00:59.2]} 31. Qg2
{[%clk 0:01:03.9]} 31... Rxc4 {[%clk 0:00:54.6]} 32. Bxc4 {[%clk 0:00:57.5]}
32... Ne3 {[%clk 0:00:46.5]} 33. Qe2 {[%clk 0:00:55.6]} 33... Qxe4 {[%clk
0:00:44.8]} 0-1

[Event "*** Titled Tuesday 3|2 Blitz"]
[Site "Chess.com"]
[Date "2016.02.02"]
[Round "5"]
[White "VSERGUEI"]
[Black "GeorgMeier"]
[Result "0-1"]
[WhiteElo "2427"]
[BlackElo "2677"]
[TimeControl "180+2"]
[EndTime "12:03:51 PST"]
[Termination "GeorgMeier won by checkmate"]

1. d4 {[%clk 0:03:01.9]} 1... e6 {[%clk 0:03:01.3]} 2. c4 {[%clk 0:03:02]} 2...
b6 {[%clk 0:02:57.2]} 3. e4 {[%clk 0:02:58.7]} 3... Bb7 {[%clk 0:02:58.4]} 4.
Bd3 {[%clk 0:02:58.7]} 4... Nc6 {[%clk 0:02:58.8]} 5. Nf3 {[%clk 0:02:55.4]}
5... Nb4 {[%clk 0:02:59.8]} 6. Nc3 {[%clk 0:02:55.3]} 6... Nxd3+ {[%clk
0:03:00.8]} 7. Qxd3 {[%clk 0:02:55.5]} 7... Ne7 {[%clk 0:03:02.7]} 8. h4 {[%clk
0:02:52.7]} 8... h5 {[%clk 0:02:41.7]} 9. Bg5 {[%clk 0:02:50.3]} 9... f6 {[%clk
0:02:39.2]} 10. Be3 {[%clk 0:02:50.3]} 10... d6 {[%clk 0:02:33.6]} 11. O-O-O
{[%clk 0:02:48]} 11... Qd7 {[%clk 0:02:33.5]} 12. Kb1 {[%clk 0:02:44.3]} 12...
a6 {[%clk 0:01:40.9]} 13. Rhe1 {[%clk 0:02:42.8]} 13... Rd8 {[%clk 0:01:19.6]}
14. Qc2 {[%clk 0:02:35.9]} 14... Kf7 {[%clk 0:01:15.1]} 15. c5 {[%clk
0:02:27.2]} 15... d5 {[%clk 0:01:13.5]} 16. e5 {[%clk 0:02:23.2]} 16... Nf5
{[%clk 0:01:09.4]} 17. Na4 {[%clk 0:02:17.5]} 17... Bc6 {[%clk 0:01:09.5]} 18.
Nc3 {[%clk 0:02:11.9]} 18... Rb8 {[%clk 0:01:04.9]} 19. cxb6 {[%clk 0:02:04.6]}
19... cxb6 {[%clk 0:01:00.9]} 20. Rc1 {[%clk 0:02:00.2]} 20... Be7 {[%clk
0:01:00.6]} 21. Qe2 {[%clk 0:01:53.2]} 21... a5 {[%clk 0:00:59.4]} 22. Bf4
{[%clk 0:01:48]} 22... Rbc8 {[%clk 0:00:59.6]} 23. Qd3 {[%clk 0:01:34.8]} 23...
b5 {[%clk 0:00:59.9]} 24. Ne2 {[%clk 0:01:35.2]} 24... b4 {[%clk 0:00:59.1]} 25.
Ng3 {[%clk 0:01:36.1]} 25... Bb5 {[%clk 0:01:00.4]} 26. Qd2 {[%clk 0:01:35.5]}
26... Nxg3 {[%clk 0:00:58.4]} 27. fxg3 {[%clk 0:01:35.2]} 27... Rxc1+ {[%clk
0:00:58.5]} 28. Rxc1 {[%clk 0:01:33.7]} 28... Rc8 {[%clk 0:00:59.5]} 29. Rxc8
{[%clk 0:01:27.4]} 29... Qxc8 {[%clk 0:01:00.6]} 30. b3 {[%clk 0:01:28.6]} 30...
Qa6 {[%clk 0:00:58.4]} 31. Ne1 {[%clk 0:01:25.4]} 31... Be2 {[%clk 0:00:55.2]}
32. exf6 {[%clk 0:01:19.6]} 32... gxf6 {[%clk 0:00:55.4]} 33. Qc2 {[%clk
0:01:20.1]} 33... Bg4 {[%clk 0:00:53.7]} 34. Qh7+ {[%clk 0:01:20.2]} 34... Ke8
{[%clk 0:00:54.9]} 35. Qg8+ {[%clk 0:01:11.3]} 35... Kd7 {[%clk 0:00:55.9]} 36.
Qb8 {[%clk 0:01:12.1]} 36... Qe2 {[%clk 0:00:48]} 37. Nf3 {[%clk 0:01:02]} 37...
Bf5+ {[%clk 0:00:46.9]} 38. Ka1 {[%clk 0:01:00.4]} 38... Qd1+ {[%clk 0:00:47.4]}
39. Kb2 {[%clk 0:01:00.8]} 39... Qb1# {[%clk 0:00:47.9]} 0-1

[Event "*** Titled Tuesday 3|2 Blitz"]
[Site "Chess.com"]
[Date "2016.02.02"]
[Round "5"]
[White "kpio91"]
[Black "DrVitman"]
[Result "1-0"]
[WhiteElo "2506"]
[BlackElo "2188"]
[TimeControl "180+2"]
[EndTime "12:04:09 PST"]
[Termination "kpio91 won on time"]

1. e4 {[%clk 0:02:58.4]} 1... c5 {[%clk 0:02:45.5]} 2. Nf3 {[%clk 0:02:59.1]}
2... Nc6 {[%clk 0:02:44.1]} 3. d4 {[%clk 0:03:00.1]} 3... cxd4 {[%clk
0:02:43.9]} 4. Nxd4 {[%clk 0:03:01.2]} 4... e5 {[%clk 0:02:45.5]} 5. Nb5 {[%clk
0:03:02.3]} 5... a6 {[%clk 0:02:46.7]} 6. Nd6+ {[%clk 0:03:02.8]} 6... Bxd6
{[%clk 0:02:47.7]} 7. Qxd6 {[%clk 0:03:03.9]} 7... Qe7 {[%clk 0:02:48]} 8. Qd2
{[%clk 0:02:57.3]} 8... Nf6 {[%clk 0:02:48]} 9. Nc3 {[%clk 0:02:58.2]} 9... O-O
{[%clk 0:02:39.6]} 10. f3 {[%clk 0:02:53.3]} 10... Nd4 {[%clk 0:02:35.9]} 11.
Bd3 {[%clk 0:02:45.4]} 11... b5 {[%clk 0:02:34.7]} 12. O-O {[%clk 0:02:44.5]}
12... Bb7 {[%clk 0:02:34.6]} 13. Ne2 {[%clk 0:02:44.5]} 13... Nxe2+ {[%clk
0:02:34.7]} 14. Qxe2 {[%clk 0:02:45.4]} 14... d5 {[%clk 0:02:33.6]} 15. exd5
{[%clk 0:02:35.4]} 15... Nxd5 {[%clk 0:02:35.5]} 16. a3 {[%clk 0:02:36.2]} 16...
Rfe8 {[%clk 0:02:30.5]} 17. Bd2 {[%clk 0:02:35.4]} 17... g6 {[%clk 0:02:08.9]}
18. Rae1 {[%clk 0:02:33.9]} 18... Rac8 {[%clk 0:02:05.4]} 19. Qf2 {[%clk
0:02:28.5]} 19... Qc5 {[%clk 0:02:00.9]} 20. Qxc5 {[%clk 0:02:22.8]} 20... Rxc5
{[%clk 0:02:02.8]} 21. f4 {[%clk 0:02:24.2]} 21... f6 {[%clk 0:01:27.7]} 22.
fxe5 {[%clk 0:02:19.5]} 22... fxe5 {[%clk 0:01:29.6]} 23. Bh6 {[%clk 0:02:05.9]}
23... Rcc8 {[%clk 0:01:29.2]} 24. Re2 {[%clk 0:02:01.7]} 24... Nb6 {[%clk
0:01:12.4]} 25. Rfe1 {[%clk 0:01:57.2]} 25... Nd7 {[%clk 0:00:47.7]} 26. c3
{[%clk 0:01:56.6]} 26... Bd5 {[%clk 0:00:46.3]} 27. Rd2 {[%clk 0:01:53.4]} 27...
Be6 {[%clk 0:00:46.7]} 28. Bc2 {[%clk 0:01:46.2]} 28... Rc6 {[%clk 0:00:43.3]}
29. h4 {[%clk 0:01:36.8]} 29... Bg4 {[%clk 0:00:28.4]} 30. Bb3+ {[%clk
0:01:34.9]} 30... Kh8 {[%clk 0:00:28.3]} 31. Rf1 {[%clk 0:01:29.8]} 31... Bf5
{[%clk 0:00:14.4]} 32. g4 {[%clk 0:01:22.6]} 32... Bxg4 {[%clk 0:00:12.9]} 33.
Rf7 {[%clk 0:01:23.4]} 33... Nc5 {[%clk 0:00:13]} 34. Re7 {[%clk 0:01:02.6]} 1-0

[Event "*** Titled Tuesday 3|2 Blitz"]
[Site "Chess.com"]
[Date "2016.02.02"]
[Round "5"]
[White "JusticeBot"]
[Black "Maitreia"]
[Result "1-0"]
[WhiteElo "2433"]
[BlackElo "2448"]
[TimeControl "180+2"]
[EndTime "12:04:10 PST"]
[Termination "JusticeBot won by checkmate"]

1. e4 {[%clk 0:03:01.9]} 1... c5 {[%clk 0:02:57.5]} 2. c3 {[%clk 0:03:03.4]}
2... Nf6 {[%clk 0:02:57.8]} 3. e5 {[%clk 0:03:05]} 3... Nd5 {[%clk 0:02:59]} 4.
d4 {[%clk 0:03:06.9]} 4... cxd4 {[%clk 0:03:00.9]} 5. Nf3 {[%clk 0:03:08.8]}
5... Nc6 {[%clk 0:03:00.7]} 6. Bc4 {[%clk 0:03:09.5]} 6... Nb6 {[%clk
0:02:52.8]} 7. Bb3 {[%clk 0:03:10.1]} 7... d5 {[%clk 0:02:51.1]} 8. exd6 {[%clk
0:03:12]} 8... Qxd6 {[%clk 0:02:51.3]} 9. O-O {[%clk 0:03:12.7]} 9... Be6 {[%clk
0:02:50.9]} 10. Na3 {[%clk 0:03:13.1]} 10... Bxb3 {[%clk 0:02:48.6]} 11. Qxb3
{[%clk 0:03:12.1]} 11... e6 {[%clk 0:02:34.4]} 12. Nb5 {[%clk 0:03:12.8]} 12...
Qb8 {[%clk 0:02:33.8]} 13. g3 {[%clk 0:02:44.5]} 13... Bd6 {[%clk 0:02:34.4]}
14. Rd1 {[%clk 0:02:32.3]} 14... O-O {[%clk 0:02:22.1]} 15. Nfxd4 {[%clk
0:02:33.5]} 15... Nxd4 {[%clk 0:02:22.6]} 16. Rxd4 {[%clk 0:02:35.4]} 16... Be5
{[%clk 0:02:22.6]} 17. Rd3 {[%clk 0:02:28.4]} 17... Rd8 {[%clk 0:02:18.1]} 18.
Rxd8+ {[%clk 0:02:27.3]} 18... Qxd8 {[%clk 0:02:20]} 19. Be3 {[%clk 0:02:29]}
19... Nd5 {[%clk 0:02:06.1]} 20. Rd1 {[%clk 0:02:29]} 20... Qa5 {[%clk
0:01:59.1]} 21. Bd4 {[%clk 0:02:24.4]} 21... Bxd4 {[%clk 0:01:51.4]} 22. Rxd4
{[%clk 0:02:26]} 22... a6 {[%clk 0:01:49]} 23. Nd6 {[%clk 0:02:26.9]} 23... b5
{[%clk 0:01:42.8]} 24. Nxf7 {[%clk 0:02:04.6]} 24... Qc7 {[%clk 0:01:01.5]} 25.
Ng5 {[%clk 0:02:02.9]} 25... Qe5 {[%clk 0:00:56.6]} 26. Nxe6 {[%clk 0:01:58.4]}
26... Qe1+ {[%clk 0:00:29.8]} 27. Kg2 {[%clk 0:01:58.9]} 27... Ne3+ {[%clk
0:00:31.7]} 28. fxe3 {[%clk 0:01:50.7]} 28... Qe2+ {[%clk 0:00:32.8]} 29. Kh3
{[%clk 0:01:50.8]} 29... Qf1+ {[%clk 0:00:22]} 30. Kh4 {[%clk 0:01:49.6]} 30...
Kh8 {[%clk 0:00:18.9]} 31. Rf4 {[%clk 0:01:39.4]} 31... Qe2 {[%clk 0:00:13.8]}
32. h3 {[%clk 0:01:33.8]} 32... Qxe3 {[%clk 0:00:14.7]} 33. Qd5 {[%clk
0:01:31.9]} 33... Rg8 {[%clk 0:00:15.3]} 34. Ng5 {[%clk 0:01:25.2]} 34... h6
{[%clk 0:00:10.5]} 35. Nf7+ {[%clk 0:01:24.2]} 35... Kh7 {[%clk 0:00:11.9]} 36.
Qe4+ {[%clk 0:01:25.7]} 36... Qxe4 {[%clk 0:00:10.7]} 37. Rxe4 {[%clk
0:01:27.6]} 37... Rf8 {[%clk 0:00:07.9]} 38. Nd6 {[%clk 0:01:24.8]} 38... g5+
{[%clk 0:00:08.2]} 39. Kh5 {[%clk 0:01:25.2]} 39... Rf3 {[%clk 0:00:08.3]} 40.
Re7+ {[%clk 0:01:25.4]} 40... Kg8 {[%clk 0:00:09]} 41. Kg6 {[%clk 0:01:26.6]}
41... Kf8 {[%clk 0:00:10.3]} 42. Re8# {[%clk 0:01:27.8]} 1-0

[Event "*** Titled Tuesday 3|2 Blitz"]
[Site "Chess.com"]
[Date "2016.02.02"]
[Round "5"]
[White "Grootneus"]
[Black "kharposh"]
[Result "1-0"]
[WhiteElo "2034"]
[BlackElo "2060"]
[TimeControl "180+2"]
[EndTime "12:04:17 PST"]
[Termination "Grootneus won by resignation"]

1. e4 {[%clk 0:03:01.9]} 1... e5 {[%clk 0:03:00.9]} 2. Nf3 {[%clk 0:03:02.6]}
2... Nc6 {[%clk 0:03:02.2]} 3. Bb5 {[%clk 0:03:03.5]} 3... Nf6 {[%clk
0:03:03.1]} 4. d3 {[%clk 0:03:04.2]} 4... d6 {[%clk 0:03:01.8]} 5. c3 {[%clk
0:03:03.7]} 5... Bd7 {[%clk 0:03:00.9]} 6. Ba4 {[%clk 0:03:04.2]} 6... g6 {[%clk
0:03:00.5]} 7. O-O {[%clk 0:03:03.1]} 7... Bg7 {[%clk 0:03:01.3]} 8. Re1 {[%clk
0:03:03.5]} 8... O-O {[%clk 0:03:01.7]} 9. Nbd2 {[%clk 0:03:04.1]} 9... Nh5
{[%clk 0:02:58.8]} 10. Bb3 {[%clk 0:03:03.5]} 10... Bg4 {[%clk 0:02:53.5]} 11.
h3 {[%clk 0:03:03.8]} 11... Be6 {[%clk 0:02:53.6]} 12. Nf1 {[%clk 0:02:59.4]}
12... Nf4 {[%clk 0:02:47.4]} 13. d4 {[%clk 0:02:41.6]} 13... Bxb3 {[%clk
0:02:41.1]} 14. axb3 {[%clk 0:02:40]} 14... Qf6 {[%clk 0:02:39.8]} 15. Bxf4
{[%clk 0:02:17]} 15... Qxf4 {[%clk 0:02:38.7]} 16. Qd2 {[%clk 0:02:08.5]} 16...
Qxd2 {[%clk 0:02:35.4]} 17. N1xd2 {[%clk 0:02:09]} 17... exd4 {[%clk 0:02:35.9]}
18. cxd4 {[%clk 0:02:01.4]} 18... Nxd4 {[%clk 0:02:34.3]} 19. Nxd4 {[%clk
0:01:46.9]} 19... Bxd4 {[%clk 0:02:34.2]} 20. Nc4 {[%clk 0:01:48.1]} 20... Rfe8
{[%clk 0:02:22.1]} 21. Kf1 {[%clk 0:01:48.2]} 21... b6 {[%clk 0:02:09.8]} 22. f3
{[%clk 0:01:47.4]} 22... a5 {[%clk 0:02:07.8]} 23. Ke2 {[%clk 0:01:45.7]} 23...
Re7 {[%clk 0:02:04.6]} 24. Kd3 {[%clk 0:01:46]} 24... Bg7 {[%clk 0:01:58.6]} 25.
Re2 {[%clk 0:01:46.2]} 25... Rae8 {[%clk 0:01:57.7]} 26. Ne3 {[%clk 0:01:46.8]}
26... f5 {[%clk 0:01:46.1]} 27. Nd5 {[%clk 0:01:46.9]} 27... fxe4+ {[%clk
0:01:46.3]} 28. fxe4 {[%clk 0:01:48.1]} 28... Rf7 {[%clk 0:01:42.7]} 29. Rc1
{[%clk 0:01:49.5]} 29... c5 {[%clk 0:01:29.9]} 30. Kc4 {[%clk 0:01:38.6]} 30...
Bd4 {[%clk 0:01:11.2]} 31. Kb5 {[%clk 0:01:24.5]} 31... Rf2 {[%clk 0:01:07.2]}
32. Rxf2 {[%clk 0:01:21.9]} 32... Bxf2 {[%clk 0:01:07.8]} 33. Nf6+ {[%clk
0:01:22.9]} 33... Kf7 {[%clk 0:01:08.6]} 34. Nxe8 {[%clk 0:01:24.8]} 34... Kxe8
{[%clk 0:01:10.4]} 35. Kxb6 {[%clk 0:01:24.9]} 35... c4+ {[%clk 0:01:11.5]} 36.
Kxa5 {[%clk 0:01:26.1]} 36... cxb3 {[%clk 0:01:11.4]} 37. Kb4 {[%clk 0:01:23.9]}
37... Kd7 {[%clk 0:01:12.2]} 38. Kxb3 {[%clk 0:01:24.4]} 38... Ke6 {[%clk
0:01:13.4]} 39. Kc4 {[%clk 0:01:24.9]} 39... Ke5 {[%clk 0:01:14.1]} 40. Kd3
{[%clk 0:01:26]} 40... Kf4 {[%clk 0:01:12.5]} 41. Rc7 {[%clk 0:01:16.3]} 41...
h5 {[%clk 0:01:10.6]} 42. Rg7 {[%clk 0:01:16.5]} 42... g5 {[%clk 0:01:11.1]} 43.
b4 {[%clk 0:01:17.4]} 43... g4 {[%clk 0:01:11]} 44. hxg4 {[%clk 0:01:18.8]}
44... hxg4 {[%clk 0:01:11]} 45. b5 {[%clk 0:01:19.5]} 45... Kg3 {[%clk
0:01:10.5]} 46. Kc4 {[%clk 0:01:19.5]} 46... Kf4 {[%clk 0:01:11]} 47. Kd5 {[%clk
0:01:20.2]} 47... g3 {[%clk 0:01:08.3]} 48. Rf7+ {[%clk 0:01:16.2]} 48... Ke3
{[%clk 0:01:07.7]} 49. b6 {[%clk 0:01:17.3]} 1-0

[Event "*** Titled Tuesday 3|2 Blitz"]
[Site "Chess.com"]
[Date "2016.02.02"]
[Round "5"]
[White "manubibi"]
[Black "Hafez_Bakr"]
[Result "0-1"]
[WhiteElo "2389"]
[BlackElo "1755"]
[TimeControl "180+2"]
[EndTime "12:04:27 PST"]
[Termination "Hafez_Bakr won by checkmate"]

1. e4 {[%clk 0:03:01.4]} 1... c5 {[%clk 0:03:01]} 2. Nf3 {[%clk 0:03:00.2]} 2...
d6 {[%clk 0:03:02.1]} 3. d4 {[%clk 0:02:58.6]} 3... cxd4 {[%clk 0:03:03.8]} 4.
Nxd4 {[%clk 0:03:00.3]} 4... Nf6 {[%clk 0:03:05.7]} 5. Nc3 {[%clk 0:03:00.7]}
5... a6 {[%clk 0:03:07.6]} 6. Bg5 {[%clk 0:03:00.8]} 6... e6 {[%clk 0:03:07.8]}
7. f4 {[%clk 0:03:01.2]} 7... Be7 {[%clk 0:03:08.8]} 8. Qf3 {[%clk 0:02:59.7]}
8... Qc7 {[%clk 0:03:08.2]} 9. O-O-O {[%clk 0:02:59.2]} 9... Nbd7 {[%clk
0:03:08.7]} 10. g4 {[%clk 0:02:57.6]} 10... h6 {[%clk 0:03:07.7]} 11. Bxf6
{[%clk 0:02:56.2]} 11... Bxf6 {[%clk 0:03:07.4]} 12. h4 {[%clk 0:02:57]} 12...
b5 {[%clk 0:02:59.3]} 13. Bxb5 {[%clk 0:02:56.7]} 13... axb5 {[%clk 0:02:59.4]}
14. Ndxb5 {[%clk 0:02:58.3]} 14... Qb8 {[%clk 0:03:00.5]} 15. Nxd6+ {[%clk
0:02:58.5]} 15... Kf8 {[%clk 0:03:01.4]} 16. g5 {[%clk 0:02:48.3]} 16... Be7
{[%clk 0:02:59.2]} 17. e5 {[%clk 0:02:42.8]} 17... Bxd6 {[%clk 0:02:50.3]} 18.
Rxd6 {[%clk 0:02:41.1]} 18... Bb7 {[%clk 0:02:51]} 19. Qh5 {[%clk 0:02:26.6]}
19... g6 {[%clk 0:02:35.1]} 20. Qd1 {[%clk 0:02:24.5]} 20... Bxh1 {[%clk
0:02:30.5]} 21. Rxd7 {[%clk 0:02:25.7]} 21... hxg5 {[%clk 0:02:29.6]} 22. Qxh1
{[%clk 0:01:58.1]} 22... Rxh4 {[%clk 0:02:26.5]} 23. Qg1 {[%clk 0:01:59]} 23...
Rxf4 {[%clk 0:02:21]} 24. Qc5+ {[%clk 0:01:25]} 24... Kg7 {[%clk 0:02:16.2]} 25.
b3 {[%clk 0:01:25.4]} 25... Rf5 {[%clk 0:02:11.4]} 26. Rc7 {[%clk 0:01:18]}
26... Qf8 {[%clk 0:01:56.7]} 27. a4 {[%clk 0:00:49.3]} 27... g4 {[%clk
0:01:40.7]} 28. Ne4 {[%clk 0:00:47.1]} 28... Qxc5 {[%clk 0:01:37.8]} 29. Rxc5
{[%clk 0:00:47.7]} 29... Rf3 {[%clk 0:01:32.4]} 30. Kd2 {[%clk 0:00:42]} 30...
g3 {[%clk 0:01:32.7]} 31. Ng5 {[%clk 0:00:20.6]} 31... Rd8+ {[%clk 0:01:25.1]}
32. Ke1 {[%clk 0:00:17.3]} 32... Re3+ {[%clk 0:01:17.1]} 33. Kf1 {[%clk
0:00:18.8]} 33... Rd1+ {[%clk 0:01:14.8]} 34. Kg2 {[%clk 0:00:19.1]} 34... Rd2+
{[%clk 0:01:15.6]} 35. Kh3 {[%clk 0:00:12.8]} 35... g2+ {[%clk 0:01:15.8]} 36.
Kh4 {[%clk 0:00:11.4]} 36... g1=Q {[%clk 0:01:10.9]} 37. Nxe6+ {[%clk
0:00:12.6]} 37... fxe6 {[%clk 0:01:11]} 38. Rc7+ {[%clk 0:00:13.4]} 38... Kf8
{[%clk 0:01:11.2]} 39. Rf7+ {[%clk 0:00:13.3]} 39... Kxf7 {[%clk 0:01:11.7]} 40.
a5 {[%clk 0:00:12.9]} 40... Rh2# {[%clk 0:01:09.6]} 0-1